fUST/lending_fUST_20251128
["ID","MTS","AMOUNT","RATE_DAILY","PERIOD"]
[395000195,1764285043585,-1264.62,0.00019178,2]
[395000196,1764285043595,-500.0,0.00019178,2]
[395000197,1764285043604,-500.0,0.00019178,2]
[395000198,1764285043683,-500.0,0.00019178,2]
[395000199,1764285043692,-598.50360493,0.00019178,2]
[395000200,1764285043702,-11526.65,0.00019178,2]
[395000201,1764285043711,-500.0,0.00019178,2]
[395000202,1764285043720,-500.0,0.00019178,2]
[395000203,1764285043729,-500.0,0.00019178,2]
[395000204,1764285043739,-502.23,0.00019178,2]
[395000205,1764285043749,-500.0,0.00019178,2]
[395000206,1764285043758,-1235.28,0.00019178,2]
[395000207,1764285043767,-4909.94,0.00019178,2]
[395000208,1764285043777,-741.05,0.00019178,2]
[395000209,1764285043786,-500.0,0.00019178,2]
[395000210,1764285043796,-500.0,0.00019178,2]
[395000211,1764285043806,-500.0,0.00019178,2]
[395000212,1764285043815,-4729.41,0.00019178,2]
[395000213,1764285043824,-500.0,0.00019178,2]
[395000214,1764285043833,-1426.86,0.00019178,2]
[395000215,1764285043842,-500.0,0.00019178,2]
[395000216,1764285043852,-500.0,0.00019178,2]
[395000217,1764285043861,-500.0,0.00019178,2]
[395000218,1764285043870,-500.0,0.00019178,2]
[395000219,1764285043879,-500.0,0.00019178,2]
[395000220,1764285043888,-5955.03,0.00019178,2]
[395000221,1764285043898,-621.49,0.00019178,2]
[395000222,1764285043907,-515.77164874,0.00019178,2]
[395000223,1764285043916,-500.0,0.00019178,2]
[395000224,1764285043925,-500.0,0.00019178,2]
[395000225,1764285043935,-1479.59,0.00019178,2]
[395000226,1764285043945,-500.0,0.00019178,2]
[395000227,1764285043954,-500.0,0.00019178,2]
[395000228,1764285043963,-1077.45,0.00019178,2]
[395000229,1764285043972,-681.61,0.00019178,2]
[395000230,1764285043980,-2719.03,0.00019178,2]
[395000231,1764285043991,-500.0,0.00019178,2]
[395000232,1764285044001,-500.0,0.00019178,2]
[395000233,1764285044011,-200.0,0.00019178,5]
[395000234,1764285044020,-1266.71830661,0.00019352,2]
[395000235,1764285044031,-500.0,0.00019452,2]
[395000236,1764285044041,-500.0,0.00019452,2]
[395000237,1764285044051,-500.0,0.00019452,2]
[395000238,1764285044060,-500.0,0.00019452,2]
[395000239,1764285044070,-500.0,0.00019452,2]
[395000240,1764285044079,-500.0,0.00019452,2]
[395000241,1764285044088,-500.0,0.00019452,2]
[395000242,1764285044098,-500.0,0.00019452,2]
[395000243,1764285044112,-500.0,0.00019452,2]
[395000244,1764285044122,-500.0,0.00019452,2]
[395000245,1764285044131,-500.0,0.00019452,2]
[395000246,1764285044141,-500.0,0.00019452,2]
[395000247,1764285044151,-500.0,0.00019452,2]
[395000248,1764285044161,-500.0,0.00019452,2]
[395000249,1764285044170,-500.0,0.00019452,2]
[395000250,1764285044179,-500.0,0.00019452,2]
[395000251,1764285044189,-500.0,0.00019452,2]
[395000252,1764285044198,-500.0,0.00019452,2]
[395000253,1764285044207,-500.0,0.00019452,2]
[395000254,1764285044215,-500.0,0.00019452,2]
[395000255,1764285044225,-523.7,0.00019452,2]
[395000256,1764285044234,-500.0,0.00019452,2]
[395000257,1764285044243,-500.0,0.00019452,2]
[395000258,1764285044252,-554.26,0.00019452,2]
[395000259,1764285044261,-500.0,0.00019452,2]
[395000260,1764285044270,-500.0,0.00019452,2]
[395000261,1764285044279,-209.82198866,0.00019452,2]
[395000262,1764285044288,-500.0,0.00019452,2]
[395000263,1764285044297,-1384.72,0.00019452,2]
[395000264,1764285044306,-662.98,0.00019452,2]
[395000265,1764285044315,-770.22,0.00019452,2]
[395000266,1764285044324,-500.0,0.00019452,2]
[395000267,1764285044333,-500.0,0.00019452,2]
[395000268,1764285044342,-500.0,0.00019452,2]
[395000269,1764285044351,-484.76392817,0.00019452,2]
[395000270,1764285044360,-763.79,0.00019452,2]
[395000271,1764285044369,-500.0,0.00019452,2]
[395000272,1764285044378,-1063.78,0.00019452,2]
[395000273,1764285044387,-500.0,0.00019452,2]
[395000274,1764285044396,-500.0,0.00019452,2]
[395000275,1764285044405,-659.67,0.00019452,2]
[395000276,1764285044414,-500.0,0.00019452,2]
[395000277,1764285044424,-500.0,0.00019452,2]
[395000278,1764285044433,-500.0,0.00019452,2]
[395000279,1764285044442,-500.0,0.00019452,2]
[395000280,1764285044451,-500.0,0.00019452,2]
[395000281,1764285044460,-500.0,0.00019452,2]
[395000282,1764285044470,-500.0,0.00019452,2]
[395000283,1764285044479,-500.0,0.00019452,2]
[395000284,1764285044489,-500.0,0.00019452,2]
[395000285,1764285044499,-862.4,0.00019452,2]
[395000286,1764285044509,-500.0,0.00019452,2]
[395000287,1764285044519,-500.0,0.00019452,2]
[395000288,1764285044528,-500.0,0.00019452,2]
[395000289,1764285044537,-500.0,0.00019452,2]
[395000290,1764285044546,-500.0,0.00019452,2]
[395000291,1764285044555,-602.65,0.00019452,2]
[395000292,1764285044564,-500.0,0.00019452,2]
[395000293,1764285044573,-500.0,0.00019452,2]
[395000294,1764285044582,-826.81,0.00019452,2]
[395000295,1764285044591,-598.89,0.00019452,2]
[395000296,1764285044600,-500.0,0.00019452,2]
[395000297,1764285044609,-955.78,0.00019452,2]
[395000298,1764285044618,-550.98,0.00019452,2]
[395000299,1764285044628,-1426.02,0.00019452,2]
[395000300,1764285044637,-585.81,0.00019452,2]
[395000301,1764285044647,-500.0,0.00019452,2]
[395000302,1764285044656,-500.0,0.00019452,2]
[395000303,1764285044665,-205.82451655,0.00019452,2]
[395000304,1764285044674,-500.0,0.00019452,2]
[395000305,1764285044683,-500.0,0.00019452,2]
[395000306,1764285044692,-500.0,0.00019452,2]
[395000307,1764285044701,-505.47643713,0.00019452,2]
[395000308,1764285044710,-711.29,0.00019452,2]
[395000309,1764285044719,-500.0,0.00019452,2]
[395000310,1764285044729,-500.0,0.00019452,2]
[395000311,1764285044738,-500.0,0.00019452,2]
[395000312,1764285044748,-1080.24,0.00019452,2]
[395000313,1764285044757,-706.43,0.00019452,2]
[395000314,1764285044767,-500.0,0.00019452,2]
[395000315,1764285044775,-500.0,0.00019452,2]
[395000316,1764285044785,-519.6,0.00019452,2]
[395000317,1764285044794,-1228.45,0.00019452,2]
[395000318,1764285044803,-500.0,0.00019452,2]
[395000319,1764285044813,-536.72,0.00019452,2]
[395000320,1764285044822,-500.0,0.00019452,2]
[395000321,1764285044832,-500.0,0.00019452,2]
[395000322,1764285044841,-500.0,0.00019452,2]
[395000323,1764285044851,-500.0,0.00019452,2]
[395000324,1764285044860,-2807.73,0.00019452,2]
[395000325,1764285044870,-500.0,0.00019452,2]
[395000326,1764285044879,-500.0,0.00019452,2]
[395000327,1764285044888,-500.0,0.00019452,2]
[395000328,1764285044898,-1208.89,0.00019452,2]
[395000329,1764285044908,-500.0,0.00019452,2]
[395000330,1764285044917,-1421.64,0.00019452,2]
[395000331,1764285044926,-500.0,0.00019452,2]
[395000332,1764285044935,-500.0,0.00019452,2]
[395000333,1764285044945,-500.0,0.00019452,2]
[395000334,1764285044954,-500.0,0.00019452,2]
[395000335,1764285044963,-500.0,0.00019452,2]
[395000336,1764285044972,-500.0,0.00019452,2]
[395000337,1764285044982,-500.0,0.00019452,2]
[395000338,1764285044991,-500.0,0.00019452,2]
[395000339,1764285045000,-500.0,0.00019452,2]
[395000340,1764285045009,-563.33,0.00019452,2]
[395000341,1764285045019,-500.0,0.00019452,2]
[395000342,1764285045028,-500.0,0.00019452,2]
[395000343,1764285045037,-500.0,0.00019452,2]
[395000344,1764285045048,-1855.37,0.00019452,2]
[395000345,1764285045057,-500.0,0.00019452,2]
[395000346,1764285045066,-500.0,0.00019452,2]
[395000347,1764285045075,-531.04,0.00019452,2]
[395000348,1764285045084,-649.43,0.00019452,2]
[395000349,1764285045093,-156.03930944,0.00019452,2]
[395000350,1764285045105,-500.0,0.00019452,2]
[395000351,1764285045115,-500.0,0.00019452,2]
[395000352,1764285045124,-500.0,0.00019452,2]
[395000353,1764285045133,-500.0,0.00019452,2]
[395000354,1764285045143,-500.0,0.00019452,2]
[395000355,1764285045152,-500.0,0.00019452,2]
[395000356,1764285045161,-1254.27,0.00019452,2]
[395000357,1764285045170,-500.0,0.00019452,2]
[395000358,1764285045179,-693.91,0.00019452,2]
[395000359,1764285045187,-500.0,0.00019452,2]
[395000360,1764285045197,-1362.4,0.00019452,2]
[395000361,1764285045206,-500.0,0.00019452,2]
[395000362,1764285045215,-500.0,0.00019452,2]
[395000363,1764285045224,-927.62,0.00019452,2]
[395000364,1764285045233,-500.0,0.00019452,2]
[395000365,1764285045242,-500.0,0.00019452,2]
[395000366,1764285045252,-500.0,0.00019452,2]
[395000367,1764285045260,-949.72,0.00019452,2]
[395000368,1764285045271,-695.05,0.00019452,2]
[395000369,1764285045280,-500.0,0.00019452,2]
[395000370,1764285045289,-538.82,0.00019452,2]
[395000371,1764285045298,-500.0,0.00019452,2]
[395000372,1764285045306,-666.64,0.00019452,2]
[395000373,1764285045316,-1232.3,0.00019452,2]
[395000374,1764285045324,-500.0,0.00019452,2]
[395000375,1764285045333,-500.0,0.00019452,2]
[395000376,1764285045342,-500.0,0.00019452,2]
[395000377,1764285045351,-1598.0,0.00019452,2]
[395000378,1764285045360,-905.81,0.00019452,2]
[395000379,1764285045370,-657.71,0.00019452,2]
[395000380,1764285045379,-500.0,0.00019452,2]
[395000381,1764285045388,-2506.8,0.00019452,2]
[395000382,1764285045398,-833.17,0.00019452,2]
[395000383,1764285045407,-500.0,0.00019452,2]
[395000384,1764285045417,-500.0,0.00019452,2]
[395000385,1764285045426,-3926.72,0.00019452,2]
[395000386,1764285045436,-500.0,0.00019452,2]
[395000387,1764285045446,-925.23,0.00019452,2]
[395000388,1764285045456,-1294.95,0.00019452,2]
[395000389,1764285045466,-503.4761196,0.00019452,2]
[395000391,1764285045476,-500.0,0.00019452,2]
[395000392,1764285045485,-709.34,0.00019452,2]
[395000393,1764285045495,-500.0,0.00019452,2]
[395000394,1764285045504,-500.0,0.00019452,2]
[395000395,1764285045513,-500.0,0.00019452,2]
[395000396,1764285045523,-500.0,0.00019452,2]
[395000397,1764285045532,-589.44,0.00019452,2]
[395000398,1764285045542,-1310.2,0.00019452,2]
[395000399,1764285045552,-618.14,0.00019452,2]
[395000400,1764285045562,-899.02,0.00019452,2]
[395000401,1764285045571,-500.0,0.00019452,2]
[395000402,1764285045581,-500.0,0.00019452,2]
[395000403,1764285045591,-500.0,0.00019452,2]
[395000404,1764285045600,-500.0,0.00019452,2]
[395000405,1764285045610,-1000.0,0.00019452,2]
[395000406,1764285045619,-500.0,0.00019452,2]
[395000407,1764285045630,-500.0,0.00019452,2]
[395000408,1764285045639,-1211.05,0.00019452,2]
[395000409,1764285045649,-500.0,0.00019452,2]
[395000410,1764285045658,-500.0,0.00019452,2]
[395000411,1764285045667,-1216.55,0.00019452,2]
[395000412,1764285045675,-500.0,0.00019452,2]
[395000413,1764285045684,-927.3,0.00019452,2]
[395000414,1764285045693,-500.0,0.00019452,2]
[395000415,1764285045703,-513.31422203,0.00019452,2]
[395000416,1764285045712,-500.0,0.00019452,2]
[395000417,1764285045722,-500.0,0.00019452,2]
[395000418,1764285045731,-500.0,0.00019452,2]
[395000419,1764285045740,-500.0,0.00019452,2]
[395000420,1764285045749,-500.0,0.00019452,2]
[395000421,1764285045759,-500.0,0.00019452,2]
[395000422,1764285045768,-516.14,0.00019452,2]
[395000423,1764285045777,-544.23,0.00019452,2]
[395000424,1764285045786,-2438.97,0.00019452,2]
[395000425,1764285045795,-500.0,0.00019452,2]
[395000426,1764285045804,-500.0,0.00019452,2]
[395000427,1764285045814,-500.0,0.00019452,2]
[395000428,1764285045823,-500.0,0.00019452,2]
[395000429,1764285045832,-500.0,0.00019452,2]
[395000430,1764285045841,-500.0,0.00019452,2]
[395000431,1764285045851,-500.0,0.00019452,2]
[395000432,1764285045860,-500.0,0.00019452,2]
[395000433,1764285045869,-522.7,0.00019452,2]
[395000434,1764285045879,-970.64,0.00019452,2]
[395000435,1764285045888,-500.0,0.00019452,2]
[395000436,1764285045898,-58.72679091,0.00019452,2]
[395000437,1764285046344,-510.45320909,0.00019452,2]
[395000438,1764285046354,-500.0,0.00019452,2]
[395000439,1764285046363,-1159.34,0.00019452,2]
[395000440,1764285046373,-500.0,0.00019452,2]
[395000441,1764285046383,-500.0,0.00019452,2]
[395000442,1764285046393,-500.0,0.00019452,2]
[395000443,1764285046402,-913.96,0.00019452,2]
[395000444,1764285046412,-500.0,0.00019452,2]
[395000445,1764285046422,-500.0,0.00019452,2]
[395000446,1764285046432,-500.0,0.00019452,2]
[395000447,1764285046441,-533.44,0.00019452,2]
[395000448,1764285046451,-500.0,0.00019452,2]
[395000449,1764285046460,-500.0,0.00019452,2]
[395000450,1764285046470,-1603.01,0.00019452,2]
[395000451,1764285046479,-1056.99,0.00019452,2]
[395000452,1764285046489,-500.0,0.00019452,2]
[395000453,1764285046498,-500.0,0.00019452,2]
[395000454,1764285046507,-500.0,0.00019452,2]
[395000455,1764285046517,-500.0,0.00019452,2]
[395000456,1764285046526,-500.0,0.00019452,2]
[395000457,1764285046535,-4038.82,0.00019452,2]
[395000458,1764285046544,-500.0,0.00019452,2]
[395000459,1764285046553,-500.0,0.00019452,2]
[395000460,1764285046563,-799.72,0.00019452,2]
[395000461,1764285046573,-1034.15,0.00019452,2]
[395000462,1764285046582,-500.0,0.00019452,2]
[395000463,1764285046592,-500.0,0.00019452,2]
[395000464,1764285046601,-500.0,0.00019452,2]
[395000465,1764285046610,-500.0,0.00019452,2]
[395000466,1764285046619,-500.0,0.00019452,2]
[395000467,1764285046627,-500.0,0.00019452,2]
[395000468,1764285046637,-500.0,0.00019452,2]
[395000469,1764285046646,-500.0,0.00019452,2]
[395000470,1764285046655,-313.24007452,0.00019452,2]
[395000471,1764285046664,-500.0,0.00019452,2]
[395000472,1764285046673,-500.0,0.00019452,2]
[395000473,1764285046682,-500.0,0.00019452,2]
[395000474,1764285046691,-675.15,0.00019452,2]
[395000475,1764285046700,-500.0,0.00019452,2]
[395000476,1764285046709,-1136.99,0.00019452,2]
[395000477,1764285046718,-500.0,0.00019452,2]
[395000478,1764285046727,-500.0,0.00019452,2]
[395000479,1764285046736,-500.0,0.00019452,2]
[395000480,1764285046745,-500.0,0.00019452,2]
[395000481,1764285046753,-523.3533408,0.00019452,2]
[395000482,1764285046762,-954.71,0.00019452,2]
[395000483,1764285046771,-500.0,0.00019452,2]
[395000484,1764285046780,-500.0,0.00019452,2]
[395000485,1764285046790,-500.0,0.00019452,2]
[395000486,1764285046799,-500.0,0.00019452,2]
[395000487,1764285046808,-500.0,0.00019452,2]
[395000488,1764285046817,-959.65,0.00019452,2]
[395000489,1764285046826,-502.57,0.00019452,2]
[395000490,1764285046835,-1216.03,0.00019452,2]
[395000491,1764285046845,-743.63,0.00019452,2]
[395000492,1764285046855,-1196.46,0.00019452,2]
[395000493,1764285046864,-500.0,0.00019452,2]
[395000494,1764285046873,-1402.8,0.00019452,2]
[395000495,1764285046881,-500.0,0.00019452,2]
[395000496,1764285046890,-500.0,0.00019452,2]
[395000497,1764285046899,-500.0,0.00019452,2]
[395000498,1764285046908,-500.0,0.00019452,2]
[395000499,1764285046917,-500.0,0.00019452,2]
[395000500,1764285046925,-500.0,0.00019452,2]
[395000501,1764285046934,-596.84,0.00019452,2]
[395000502,1764285046943,-500.0,0.00019452,2]
[395000503,1764285046952,-500.0,0.00019452,2]
[395000504,1764285046961,-1115.34,0.00019452,2]
[395000505,1764285046970,-500.0,0.00019452,2]
[395000506,1764285046979,-500.0,0.00019452,2]
[395000507,1764285046988,-1233.23,0.00019452,2]
[395000508,1764285046997,-500.0,0.00019452,2]
[395000509,1764285047006,-500.0,0.00019452,2]
[395000510,1764285047015,-500.0,0.00019452,2]
[395000511,1764285047024,-682.52,0.00019452,2]
[395000512,1764285047033,-500.0,0.00019452,2]
[395000513,1764285047042,-500.0,0.00019452,2]
[395000514,1764285047051,-1317.36,0.00019452,2]
[395000515,1764285047060,-500.0,0.00019452,2]
[395000516,1764285047070,-2308.48,0.00019452,2]
[395000517,1764285047080,-500.0,0.00019452,2]
[395000518,1764285047089,-1230.86,0.00019452,2]
[395000519,1764285047098,-500.0,0.00019452,2]
[395000520,1764285047111,-500.0,0.00019452,2]
[395000521,1764285047119,-500.0,0.00019452,2]
[395000522,1764285047128,-500.0,0.00019452,2]
[395000523,1764285047140,-500.0,0.00019452,2]
[395000524,1764285047149,-500.0,0.00019452,2]
[395000525,1764285047158,-779.55,0.00019452,2]
[395000526,1764285047167,-584.24,0.00019452,2]
[395000527,1764285047176,-500.0,0.00019452,2]
[395000528,1764285047185,-1755.99,0.00019452,2]
[395000529,1764285047195,-3886.56,0.00019452,2]
[395000530,1764285047203,-500.0,0.00019452,2]
[395000531,1764285047212,-500.0,0.00019452,2]
[395000532,1764285047221,-501.03043759,0.00019452,2]
[395000533,1764285047341,-1076.62,0.00019452,2]
[395000534,1764285047353,-500.0,0.00019452,2]
[395000535,1764285047362,-552.30247747,0.00019452,2]
[395000536,1764285047371,-1813.98,0.00019452,2]
[395000537,1764285047381,-500.0,0.00019452,2]
[395000538,1764285047390,-1047.36,0.00019452,2]
[395000539,1764285047400,-500.0,0.00019452,2]
[395000540,1764285047410,-715.61,0.00019452,2]
[395000541,1764285047419,-500.0,0.00019452,2]
[395000542,1764285047429,-1507.08,0.00019452,2]
[395000543,1764285047439,-500.0,0.00019452,2]
[395000544,1764285047449,-587.89522033,0.00019452,2]
[395000545,1764285047458,-500.0,0.00019452,2]
[395000546,1764285047468,-366.15152332,0.00019452,2]
[395000547,1764285047477,-500.0,0.00019452,2]
[395000548,1764285047486,-500.0,0.00019452,2]
[395000549,1764285047495,-500.0,0.00019452,2]
[395000550,1764285047504,-500.0,0.00019452,2]
[395000551,1764285047514,-500.0,0.00019452,2]
[395000552,1764285047523,-1355.5,0.00019452,2]
[395000553,1764285047532,-500.0,0.00019452,2]
[395000554,1764285047541,-500.0,0.00019452,2]
[395000555,1764285047551,-506.9199658,0.00019452,2]
[395000556,1764285047560,-500.0,0.00019452,2]
[395000557,1764285047569,-571.75919965,0.00019452,2]
[395000558,1764285047579,-500.0,0.00019452,2]
[395000559,1764285047588,-500.0,0.00019452,2]
[395000560,1764285047597,-500.0,0.00019452,2]
[395000561,1764285047606,-500.0,0.00019452,2]
[395000562,1764285047616,-2334.42,0.00019452,2]
[395000563,1764285047625,-1159.79,0.00019452,2]
[395000564,1764285047635,-500.0,0.00019452,2]
[395000565,1764285047644,-500.0,0.00019452,2]
[395000566,1764285047653,-500.0,0.00019452,2]
[395000567,1764285047662,-634.01,0.00019452,2]
[395000568,1764285047671,-500.0,0.00019452,2]
[395000569,1764285047680,-948.67,0.00019452,2]
[395000570,1764285047689,-510.14,0.00019452,2]
[395000571,1764285047698,-500.0,0.00019452,2]
[395000572,1764285047707,-1588.27,0.00019452,2]
[395000573,1764285047716,-500.0,0.00019452,2]
[395000574,1764285047725,-500.0,0.00019452,2]
[395000575,1764285047734,-3124.52,0.00019452,2]
[395000576,1764285047743,-926.95,0.00019452,2]
[395000577,1764285047753,-500.0,0.00019452,2]
[395000578,1764285047762,-500.0,0.00019452,2]
[395000579,1764285047771,-691.78,0.00019452,2]
[395000580,1764285047780,-500.0,0.00019452,2]
[395000581,1764285047789,-299.02841026,0.00019452,2]
[395000582,1764285047798,-500.0,0.00019452,2]
[395000583,1764285047808,-500.0,0.00019452,2]
[395000584,1764285047817,-500.0,0.00019452,2]
[395000585,1764285047831,-500.0,0.00019452,2]
[395000586,1764285047840,-500.0,0.00019452,2]
[395000587,1764285047849,-500.0,0.00019452,2]
[395000588,1764285047860,-500.0,0.00019452,2]
[395000589,1764285047869,-500.0,0.00019452,2]
[395000590,1764285047879,-510.37,0.00019452,2]
[395000591,1764285047888,-500.0,0.00019452,2]
[395000592,1764285047898,-500.0,0.00019452,2]
[395000593,1764285047907,-500.0,0.00019452,2]
[395000594,1764285047916,-500.0,0.00019452,2]
[395000595,1764285047925,-500.0,0.00019452,2]
[395000596,1764285047934,-500.0,0.00019452,2]
[395000597,1764285047943,-593.4,0.00019452,2]
[395000598,1764285047953,-2230.02,0.00019452,2]
[395000599,1764285047962,-500.0,0.00019452,2]
[395000600,1764285047971,-500.0,0.00019452,2]
[395000601,1764285047980,-611.31,0.00019452,2]
[395000602,1764285047990,-500.0,0.00019452,2]
[395000603,1764285047999,-778.3,0.00019452,2]
[395000604,1764285048008,-500.0,0.00019452,2]
[395000605,1764285048018,-2001.82,0.00019452,2]
[395000606,1764285048027,-500.0,0.00019452,2]
[395000607,1764285048036,-500.0,0.00019452,2]
[395000608,1764285048046,-725.9,0.00019452,2]
[395000609,1764285048055,-500.0,0.00019452,2]
[395000610,1764285048066,-500.0,0.00019452,2]
[395000611,1764285048075,-529.13,0.00019452,2]
[395000612,1764285048084,-500.0,0.00019452,2]
[395000613,1764285048094,-566.55,0.00019452,2]
[395000614,1764285048105,-786.84,0.00019452,2]
[395000615,1764285048116,-856.5,0.00019452,2]
[395000616,1764285048125,-1338.94,0.00019452,2]
[395000617,1764285048135,-1248.22,0.00019452,2]
[395000618,1764285048144,-500.0,0.00019452,2]
[395000619,1764285048154,-500.0,0.00019452,2]
[395000620,1764285048164,-500.0,0.00019452,2]
[395000621,1764285048173,-848.11,0.00019452,2]
[395000622,1764285048182,-641.48,0.00019452,2]
[395000623,1764285048192,-465.02047017,0.00019452,2]
[395000624,1764285048202,-500.0,0.00019452,2]
[395000625,1764285048211,-429.85109732,0.00019452,2]
[395000626,1764285048221,-500.0,0.00019452,2]
[395000627,1764285048231,-500.0,0.00019452,2]
[395000628,1764285048240,-500.0,0.00019452,2]
[395000629,1764285048249,-500.0,0.00019452,2]
[395000630,1764285048258,-524.5,0.00019452,2]
[395000631,1764285048267,-1084.64,0.00019452,2]
[395000632,1764285048276,-500.0,0.00019452,2]
[395000633,1764285048285,-500.0,0.00019452,2]
[395000634,1764285048295,-500.0,0.00019452,2]
[395000635,1764285048304,-705.98,0.00019452,2]
[395000636,1764285048313,-500.0,0.00019452,2]
[395000637,1764285048322,-500.0,0.00019452,2]
[395000638,1764285048331,-500.0,0.00019452,2]
[395000639,1764285048339,-520.16,0.00019452,2]
[395000640,1764285048348,-603.88497242,0.00019452,2]
[395000641,1764285048357,-1161.55,0.00019452,2]
[395000642,1764285048366,-1352.53,0.00019452,2]
[395000643,1764285048375,-500.0,0.00019452,2]
[395000644,1764285048385,-585.01,0.00019452,2]
[395000645,1764285048395,-500.0,0.00019452,2]
[395000646,1764285048403,-500.0,0.00019452,2]
[395000647,1764285048418,-1351.69,0.00019452,2]
[395000648,1764285048428,-500.0,0.00019452,2]
[395000649,1764285048437,-500.0,0.00019452,2]
[395000650,1764285048445,-500.0,0.00019452,2]
[395000651,1764285048454,-1694.88,0.00019452,2]
[395000652,1764285048464,-1045.89,0.00019452,2]
[395000653,1764285048473,-500.0,0.00019452,2]
[395000654,1764285048483,-500.0,0.00019452,2]
[395000655,1764285048492,-1545.64,0.00019452,2]
[395000656,1764285048501,-968.81,0.00019452,2]
[395000657,1764285048512,-500.0,0.00019452,2]
[395000658,1764285048521,-780.41,0.00019452,2]
[395000659,1764285048531,-500.0,0.00019452,2]
[395000660,1764285048540,-1693.47,0.00019452,2]
[395000661,1764285048549,-500.0,0.00019452,2]
[395000662,1764285048559,-269.47148555,0.00019452,2]
[395000663,1764285048568,-500.0,0.00019452,2]
[395000664,1764285048578,-1634.23,0.00019452,2]
[395000665,1764285048587,-500.0,0.00019452,2]
[395000666,1764285048596,-1076.78,0.00019452,2]
[395000667,1764285048606,-500.0,0.00019452,2]
[395000668,1764285048615,-500.0,0.00019452,2]
[395000669,1764285048624,-574.07,0.00019452,2]
[395000670,1764285048633,-500.0,0.00019452,2]
[395000671,1764285048643,-500.0,0.00019452,2]
[395000672,1764285048653,-500.0,0.00019452,2]
[395000673,1764285048663,-1498.55,0.00019452,2]
[395000674,1764285048672,-500.0,0.00019452,2]
[395000675,1764285048682,-500.0,0.00019452,2]
[395000676,1764285048691,-1123.2,0.00019452,2]
[395000677,1764285048700,-500.0,0.00019452,2]
[395000678,1764285048709,-500.0,0.00019452,2]
[395000679,1764285048718,-500.0,0.00019452,2]
[395000680,1764285048727,-978.98,0.00019452,2]
[395000681,1764285048736,-500.0,0.00019452,2]
[395000682,1764285048745,-629.14,0.00019452,2]
[395000683,1764285048755,-500.0,0.00019452,2]
[395000684,1764285048764,-4196.18,0.00019452,2]
[395000685,1764285048776,-500.0,0.00019452,2]
[395000686,1764285048786,-501.9345059,0.00019452,2]
[395000687,1764285048797,-500.0,0.00019452,2]
[395000688,1764285048808,-500.0,0.00019452,2]
[395000689,1764285048818,-500.0,0.00019452,2]
[395000690,1764285048828,-500.0,0.00019452,2]
[395000691,1764285048837,-1475.06,0.00019452,2]
[395000692,1764285048847,-500.0,0.00019452,2]
[395000693,1764285048856,-500.0,0.00019452,2]
[395000694,1764285048865,-554.09,0.00019452,2]
[395000695,1764285048876,-500.0,0.00019452,2]